[Event "10th Iberoamericano-ch 2024"]
[Site "Linares"]
[Date "2024.09.26"]
[Round "3.14"]
[White "Vitier Vazquez, Cristian"]
[Black "Lopez Martinez, Josep Manuel"]
[Result "1/2-1/2"]
[ECO "A06"]
[WhiteElo "2344"]
[BlackElo "2448"]
[Annotator "TA"]
[PlyCount "77"]
[EventDate "2024.09.25"]
[EventType "swiss"]
[EventCountry "ESP"]
[SourceTitle "playchess.com"]
[Source "ChessBase"]
[SourceQuality "1"]
[TimeControl "5400+30"]

{[%evp 12,77,16,11,19,5,18,25,37,48,59,53,62,35,47,18,27,0,0,0,0,0,0,0,0,0,0,0,0,0,0,0,0,0,0,0,0,0,0,0,0,0,0,0,0,0,0,0,0,0,0,0,0,0,0,0,0,0,0,0,0,0,0,0,0,0,0,0]} 1. Nf3 {[%emt 0:04:34]} d5 {[%emt 0:03:07]} 2. e3 {[%emt 0:00:12]} Nf6 {[%emt 0:01:00]} 3. c4 {[%emt 0:00:07]} e6 {[%emt 0:01:24]} 4. Nc3 {[%emt 0:00:15]} dxc4 {[%emt 0:01:32]} 5. Bxc4 {[%emt 0:00:16]} c5 {[%emt 0:00:05]} 6. d4 {[%emt 0:00:48]} a6 {[%emt 0:02:22]} 7. O-O {[%emt 0:00:29]} Nc6 {[%emt 0:01:35]} 8. d5 {[%emt 0:05:28]} exd5 {[%emt 0:02:32]} 9. Nxd5 {[%emt 0:00:08][%cal Oe3e4]} Nxd5 {[%emt 0:00:09] White has an edge.} 10. Bxd5 {[%emt 0:00:34]} Be7 {[%emt 0:00:07]} 11. Bxc6+ {[%emt 0:03:21]} bxc6 {[%emt 0:00:09]} 12. Qxd8+ {[%emt 0:01:21]} Bxd8 {[%emt 0:00:18]} 13. Bd2 {[%emt 0:12:32]} Bf6 {[%emt 0:00:31]} 14. Bc3 {[%emt 0:03:10]} Bxc3 {[%emt 0:00:34] The position is equal.} 15. bxc3 {[%emt 0:00:02]} Be6 {[%emt 0:00:45]} 16. Ne5 {[%emt 0:01:02][%cal Of1d1]} O-O-O {[%emt 0:00:22]} 17. Nxc6 {[%emt 0:23:29]} Rd2 {[%emt 0:02:02][%cal Oc8c7]} 18. Rfb1 {[%emt 0:02:05] [#] Rb8+ is the strong threat.} Kc7 {[%emt 0:00:40]} 19. Na5 {[%emt 0:00:14]} Rb8 {[%emt 0:00:23] Against Rb7+} 20. Nb3 {[%emt 0:05:31]} Rc2 {[%emt 0:02:11]} 21. Nxc5 {[%emt 0:02:47]} Rxb1+ {[%emt 0:01:18]} 22. Rxb1 {[%emt 0:00:00]} Rxa2 {[%emt 0:00:12]} 23. Nxe6+ {[%emt 0:00:21]} fxe6 $11 {[%emt 0:00:08][%mdl 4096] Endgame. KR-KR} 24. g4 {[%emt 0:01:25]} a5 {[%emt 0:00:21]} 25. Rb5 {[%emt 0:00:50]} a4 {[%emt 0:00:31]} 26. Re5 {[%emt 0:05:47]} a3 {[%emt 0:00:52]} 27. Rxe6 {[%emt 0:00:24] And now Ra6 would win.} Rc2 {[%emt 0:02:00]} 28. Ra6 {[%emt 0:00:24]} Rxc3 {[%emt 0:00:04]} (28... a2 $5 29. Kg2 $8 h6 $11) 29. Kf1 {[%emt 0:01:35]} Kb7 {[%emt 0:00:07]} 30. Ra4 {[%emt 0:00:13]} Kb6 {[%emt 0:00:05]} 31. Ke1 {[%emt 0:00:14]} Kb5 {[%emt 0:00:07]} 32. Ra8 {[%emt 0:00:23]} Kb4 {[%emt 0:00:36]} 33. Kd2 {[%emt 0:00:20] [#] Wards off Rc2+. Strongly threatening Rb8+.} Rc7 {[%emt 0:01:42]} 34. Rb8+ {[%emt 0:04:46]} Ka4 {[%emt 0:01:14]} 35. Ra8+ {[%emt 0:00:06]} Kb3 {[%emt 0:00:33]} 36. Rb8+ {[%emt 0:00:06]} Ka4 {[%emt 0:00:45]} 37. Ra8+ {[%emt 0:00:24]} Kb3 {[%emt 0:00:08]} 38. Rb8+ {[%emt 0:00:04]} Ka4 {[%emt 0:00:05]} 39. Ra8+ {[%emt 0:00:03] Weighted Error Value: White=0.04 (flawless) /Black=0.01 (flawless) .  Inaccurate:     	White=3     	---        OK:         	White=13    	Black=18     Best:        	White=3     	---} 1/2-1/2

[Event "10th Iberoamericano-ch 2024"]
[Site "Linares"]
[Date "2024.09.26"]
[Round "3.16"]
[White "Merario Alarcon, Andres"]
[Black "Ruiz Buendia, Miguel"]
[Result "1-0"]
[ECO "C47"]
[WhiteElo "2408"]
[BlackElo "2269"]
[Annotator "RC"]
[PlyCount "105"]
[EventDate "2024.09.25"]
[EventType "swiss"]
[EventCountry "ESP"]
[SourceTitle "playchess.com"]
[Source "ChessBase"]
[SourceQuality "1"]
[TimeControl "5400+30"]

1. e4 {[%emt 0:00:28]} e5 {[%emt 0:03:04]} 2. Nf3 {[%emt 0:00:17]} Nc6 {[%emt 0:00:09]} 3. Nc3 {[%emt 0:00:26]} Nf6 {[%emt 0:00:35]} 4. g3 {[%emt 0:00:08]} Bb4 {[%emt 0:09:09]} 5. Nd5 {[%emt 0:00:19]} Nxd5 {[%emt 0:05:35]} 6. exd5 {[%emt 0:00:59]} e4 {[%emt 0:05:59]} 7. Nh4 {[%emt 0:02:21]} Ne7 {[%emt 0:04:41]} 8. c3 {[%emt 0:12:07]} Bc5 {[%emt 0:02:13]} 9. d3 {[%emt 0:24:35]} exd3 {[%emt 0:02:19]} 10. b4 {[%emt 0:04:47]} Bb6 {[%emt 0:00:48]} 11. d6 {[%emt 0:04:57]} Ng6 {[%emt 0:06:43]} 12. Bxd3 {[%emt 0:07:51]} O-O {[%emt 0:04:06]} 13. Nxg6 {[%emt 0:07:35]} hxg6 {[%emt 0:05:20]} 14. O-O {[%emt 0:02:28]} Qf6 {[%emt 0:01:34]} 15. Bf4 {[%emt 0:03:33]} cxd6 {[%emt 0:14:09]} 16. Qf3 {[%emt 0:06:47]} d5 {[%emt 0:05:06]} 17. Qxd5 {[%emt 0:01:39]} d6 {[%emt 0:00:33]} 18. Rac1 {[%emt 0:06:18]} Bh3 {[%emt 0:03:45]} 19. Rfd1 {[%emt 0:00:29]} Be6 {[%emt 0:05:08]} 20. Qg5 {[%emt 0:02:44]} Qxg5 {[%emt 0:03:25]} 21. Bxg5 {[%emt 0:00:02]} Bxa2 {[%emt 0:04:02]} 22. Be4 {[%emt 0:03:48]} Rae8 {[%emt 0:01:28]} 23. Bxb7 {[%emt 0:02:43]} Re2 {[%emt 0:00:19]} 24. Rxd6 {[%emt 0:00:27]} Bxf2+ {[%emt 0:01:21]} 25. Kh1 {[%emt 0:00:30]} Rfe8 {[%emt 0:04:21]} 26. Bf3 {[%emt 0:00:44]} Rb2 {[%emt 0:02:01]} 27. Rd2 {[%emt 0:00:42]} Rxd2 {[%emt 0:00:28]} 28. Bxd2 {[%emt 0:00:01]} Bc4 {[%emt 0:00:51]} 29. Kg2 {[%emt 0:00:11]} Bb6 {[%emt 0:03:23]} 30. Be1 {[%emt 0:01:33]} f5 {[%emt 0:01:03]} 31. Bf2 {[%emt 0:01:14]} Rd8 {[%emt 0:00:58]} 32. Bxb6 {[%emt 0:00:40]} axb6 {[%emt 0:00:06]} 33. Rd1 {[%emt 0:00:14]} Rxd1 {[%emt 0:00:29]} 34. Bxd1 {[%emt 0:00:01]} Kf7 {[%emt 0:00:37]} 35. Kf2 {[%emt 0:00:14]} g5 {[%emt 0:01:20]} 36. Ke3 {[%emt 0:00:10]} Ke6 {[%emt 0:00:27]} 37. Kd4 {[%emt 0:00:07]} Ba6 {[%emt 0:00:37]} 38. c4 {[%emt 0:00:24]} Bb7 {[%emt 0:00:42]} 39. c5 {[%emt 0:00:13]} bxc5+ {[%emt 0:00:18]} 40. bxc5 {[%emt 0:00:02]} Bc6 {[%emt 0:00:27]} 41. Bb3+ {[%emt 0:00:38]} Kf6 {[%emt 0:00:03]} 42. Bd5 {[%emt 0:00:25]} Bxd5 {[%emt 0:01:09]} 43. Kxd5 {[%emt 0:00:04]} f4 {[%emt 0:00:05]} 44. Ke4 {[%emt 0:03:29]} fxg3 {[%emt 0:00:16]} 45. hxg3 {[%emt 0:00:05]} Ke6 {[%emt 0:00:47]} 46. g4 {[%emt 0:01:29]} g6 {[%emt 0:00:51]} 47. Kd4 {[%emt 0:00:07]} Kd7 {[%emt 0:00:36]} 48. Ke5 {[%emt 0:00:13]} Kc6 {[%emt 0:00:10]} 49. Kf6 {[%emt 0:00:07]} Kxc5 {[%emt 0:00:06]} 50. Kxg5 {[%emt 0:00:19]} Kd6 {[%emt 0:00:04]} 51. Kxg6 {[%emt 0:00:07]} Ke7 {[%emt 0:00:07]} 52. g5 {[%emt 0:00:21]} Kf8 {[%emt 0:00:20]} 53. Kh7 {[%emt 0:00:03]} 1-0

[Event "10th Iberoamericano-ch 2024"]
[Site "Linares"]
[Date "2024.09.26"]
[Round "3.17"]
[White "Matamoros Franco, Carlos S."]
[Black "Goncalves, Samuel Jesus P"]
[Result "1/2-1/2"]
[ECO "A05"]
[WhiteElo "2404"]
[BlackElo "2169"]
[Annotator "RC"]
[PlyCount "94"]
[EventDate "2024.09.25"]
[EventType "swiss"]
[EventCountry "ESP"]
[SourceTitle "playchess.com"]
[Source "ChessBase"]
[SourceQuality "1"]
[TimeControl "5400+30"]

1. Nf3 {[%emt 0:00:04]} Nf6 {[%emt 0:00:07]} 2. g3 {[%emt 0:00:11]} g6 {[%emt 0:00:07]} 3. Bg2 {[%emt 0:00:18]} Bg7 {[%emt 0:00:07]} 4. c4 {[%emt 0:00:14]} O-O {[%emt 0:00:18]} 5. O-O {[%emt 0:00:14]} c5 {[%emt 0:00:11]} 6. Nc3 {[%emt 0:00:24]} d5 {[%emt 0:00:10]} 7. d3 {[%emt 0:05:24]} Nc6 {[%emt 0:03:44]} 8. Bf4 {[%emt 0:04:42]} d4 {[%emt 0:02:33]} 9. Na4 {[%emt 0:00:06]} Nd7 {[%emt 0:00:06]} 10. a3 {[%emt 0:04:35]} e5 {[%emt 0:02:02]} 11. Bd2 {[%emt 0:00:05]} Qe7 {[%emt 0:00:59]} 12. e3 {[%emt 0:12:08]} a6 {[%emt 0:13:27]} 13. exd4 {[%emt 0:02:02]} cxd4 {[%emt 0:00:12]} 14. Rc1 {[%emt 0:08:38]} Nc5 {[%emt 0:09:29]} 15. Nxc5 {[%emt 0:02:34]} Qxc5 {[%emt 0:00:03]} 16. b4 {[%emt 0:00:05]} Qb6 {[%emt 0:00:12]} 17. Ng5 {[%emt 0:00:20]} Bf5 {[%emt 0:01:24]} 18. Ne4 {[%emt 0:01:35]} Rad8 {[%emt 0:05:17]} 19. a4 {[%emt 0:04:10]} Qc7 {[%emt 0:01:43]} 20. b5 {[%emt 0:04:09]} Nb8 {[%emt 0:00:15]} 21. c5 {[%emt 0:01:29]} Qd7 {[%emt 0:04:10]} 22. Ba5 {[%emt 0:10:12]} Rc8 {[%emt 0:02:43]} 23. Nd6 {[%emt 0:01:48]} Rxc5 {[%emt 0:00:05]} 24. Rxc5 {[%emt 0:00:05]} Qxd6 {[%emt 0:00:06]} 25. Bb4 {[%emt 0:00:20]} a5 {[%emt 0:01:14]} 26. Ba3 {[%emt 0:00:25]} Nd7 {[%emt 0:02:23]} 27. Qc1 {[%emt 0:03:00]} Nxc5 {[%emt 0:13:21]} 28. Bxc5 {[%emt 0:00:05]} Qe6 {[%emt 0:00:06]} 29. Bxf8 {[%emt 0:00:35]} Bxf8 {[%emt 0:00:02]} 30. Qc2 {[%emt 0:12:28]} b6 {[%emt 0:00:45]} 31. Re1 {[%emt 0:01:59]} Qd6 {[%emt 0:03:02]} 32. Qe2 {[%emt 0:01:45]} f6 {[%emt 0:01:17]} 33. g4 {[%emt 0:02:55]} Be6 {[%emt 0:00:06]} 34. g5 {[%emt 0:05:22]} Kf7 {[%emt 0:00:06]} 35. gxf6 {[%emt 0:01:03]} Kxf6 {[%emt 0:00:08]} 36. Rc1 {[%emt 0:00:23]} Qa3 {[%emt 0:07:16]} 37. Rc6 {[%emt 0:01:32]} Bd6 {[%emt 0:00:45]} 38. Qf3+ {[%emt 0:01:53]} Ke7 {[%emt 0:00:08]} 39. Bh3 {[%emt 0:03:11]} Qxa4 {[%emt 0:04:53]} 40. Rxd6 {[%emt 0:00:10]} Qa1+ {[%emt 0:00:18]} 41. Kg2 {[%emt 0:00:12]} Bxh3+ {[%emt 0:00:07]} 42. Kxh3 {[%emt 0:01:05]} Qf1+ {[%emt 0:03:13]} 43. Kh4 {[%emt 0:00:08]} Kxd6 {[%emt 0:01:19]} 44. Qc6+ {[%emt 0:00:19]} Ke7 {[%emt 0:00:08]} 45. Qc7+ {[%emt 0:00:52]} Kf8 {[%emt 0:00:16]} 46. Qd8+ {[%emt 0:01:44]} Kf7 {[%emt 0:00:23]} 47. Qd7+ {[%emt 0:00:35]} Kf6 {[%emt 0:01:01]} 1/2-1/2

[Event "10th Iberoamericano-ch 2024"]
[Site "Linares"]
[Date "2024.09.26"]
[Round "3.18"]
[White "Leyva, Hector"]
[Black "Veiga, Jose Francisco R P N"]
[Result "1-0"]
[ECO "C54"]
[WhiteElo "2296"]
[BlackElo "2404"]
[Annotator "RC"]
[PlyCount "107"]
[EventDate "2024.09.25"]
[EventType "swiss"]
[EventCountry "ESP"]
[SourceTitle "playchess.com"]
[Source "ChessBase"]
[SourceQuality "1"]
[TimeControl "5400+30"]

1. e4 {[%emt 0:00:11]} e5 {[%emt 0:00:15]} 2. Nf3 {[%emt 0:00:36]} Nc6 {[%emt 0:00:06]} 3. Bc4 {[%emt 0:00:09]} Bc5 {[%emt 0:00:22]} 4. c3 {[%emt 0:00:23]} Nf6 {[%emt 0:00:10]} 5. Qe2 {[%emt 0:00:58]} O-O {[%emt 0:05:05]} 6. d3 {[%emt 0:00:05]} d6 {[%emt 0:01:10]} 7. Bb3 {[%emt 0:00:17]} h6 {[%emt 0:01:54]} 8. h3 {[%emt 0:00:08]} Be6 {[%emt 0:02:18]} 9. Bc2 {[%emt 0:00:09]} Bb6 {[%emt 0:02:52]} 10. g4 {[%emt 0:00:21]} Nh7 {[%emt 0:03:29]} 11. Rg1 {[%emt 0:00:26]} Ng5 {[%emt 0:04:28]} 12. Nxg5 {[%emt 0:00:18]} hxg5 {[%emt 0:00:08]} 13. Nd2 {[%emt 0:00:06]} Ne7 {[%emt 0:13:48]} 14. Nf3 {[%emt 0:00:39]} f6 {[%emt 0:00:06]} 15. Be3 {[%emt 0:25:31]} Bxe3 {[%emt 0:06:57]} 16. fxe3 {[%emt 0:01:05]} Ng6 {[%emt 0:08:44]} 17. Qf2 {[%emt 0:07:13]} a5 {[%emt 0:02:37]} 18. d4 {[%emt 0:08:44]} b5 {[%emt 0:01:51]} 19. h4 Qe7 {[%emt 0:06:51]} 20. Qg3 {[%emt 0:11:21]} b4 {[%emt 0:07:21]} 21. d5 {[%emt 0:08:09]} Bc8 {[%emt 0:07:33]} 22. c4 {[%emt 0:00:28]} a4 {[%emt 0:09:04]} 23. Bd3 {[%emt 0:00:05]} a3 {[%emt 0:07:31]} 24. b3 {[%emt 0:00:12]} Nh8 {[%emt 0:04:37]} 25. Be2 {[%emt 0:07:48]} Nf7 {[%emt 0:01:57]} 26. O-O-O {[%emt 0:01:32]} Nh6 {[%emt 0:00:25]} 27. Nd2 {[%emt 0:00:11]} Bd7 {[%emt 0:00:50]} 28. Rh1 {[%emt 0:01:02]} Qf7 {[%emt 0:00:55]} 29. Rdf1 {[%emt 0:15:07]} Qg6 {[%emt 0:00:04]} 30. hxg5 {[%emt 0:01:32]} fxg5 {[%emt 0:00:26]} 31. Rf5 {[%emt 0:00:33]} Rf6 {[%emt 0:01:09]} 32. Rh5 {[%emt 0:00:25]} Qf7 {[%emt 0:00:52]} 33. Rfxg5 {[%emt 0:03:44]} Rf8 {[%emt 0:00:25]} 34. Qh3 {[%emt 0:00:32]} Kh7 {[%emt 0:00:21]} 35. Rf5 {[%emt 0:01:11]} Bxf5 {[%emt 0:00:05]} 36. exf5 {[%emt 0:00:16]} e4 {[%emt 0:00:01]} 37. Nxe4 {[%emt 0:00:37]} Qe7 {[%emt 0:00:03]} 38. Bd3 {[%emt 0:05:10]} R6f7 {[%emt 0:01:58]} 39. Qg3 {[%emt 0:01:50]} Kg8 {[%emt 0:00:33]} 40. Kd2 {[%emt 0:00:21]} Nxf5 {[%emt 0:00:33]} 41. gxf5 {[%emt 0:00:32]} Rxf5 {[%emt 0:00:02]} 42. Rxf5 {[%emt 0:00:24]} Rxf5 {[%emt 0:00:02]} 43. Qh2 {[%emt 0:01:05]} Re5 {[%emt 0:00:30]} 44. Qf4 {[%emt 0:00:15]} g6 {[%emt 0:00:25]} 45. Qh6 {[%emt 0:00:32]} Qf7 {[%emt 0:00:19]} 46. Ke2 {[%emt 0:00:24]} Rh5 {[%emt 0:00:15]} 47. Qf4 {[%emt 0:00:13]} Rf5 {[%emt 0:00:35]} 48. Qg3 {[%emt 0:00:23]} Rh5 {[%emt 0:00:52]} 49. Nd2 {[%emt 0:00:31]} Kg7 {[%emt 0:00:28]} 50. Nf3 {[%emt 0:00:23]} Qf6 {[%emt 0:00:19]} 51. Nd4 {[%emt 0:00:14]} Kh6 {[%emt 0:00:04]} 52. Be4 {[%emt 0:00:22]} Kh7 {[%emt 0:00:45]} 53. Ne6 {[%emt 0:00:37]} Rh2+ {[%emt 0:00:47]} 54. Qxh2+ {[%emt 0:00:04]} 1-0

[Event "10th Iberoamericano-ch 2024"]
[Site "Linares"]
[Date "2024.09.26"]
[Round "3.19"]
[White "Noboa Silva, Kevin"]
[Black "Vega Gutierrez, Sabrina"]
[Result "1-0"]
[ECO "D35"]
[WhiteElo "2270"]
[BlackElo "2374"]
[Annotator "RC"]
[PlyCount "55"]
[EventDate "2024.09.25"]
[EventType "swiss"]
[EventCountry "ESP"]
[SourceTitle "playchess.com"]
[Source "ChessBase"]
[SourceQuality "1"]
[TimeControl "5400+30"]

1. d4 {[%emt 0:00:10]} d5 {[%emt 0:00:38]} 2. c4 {[%emt 0:00:15]} e6 {[%emt 0:00:26]} 3. Nc3 {[%emt 0:00:19]} Nf6 {[%emt 0:00:19]} 4. cxd5 {[%emt 0:00:30]} Nxd5 {[%emt 0:00:51]} 5. e4 {[%emt 0:02:37]} Nxc3 {[%emt 0:00:08]} 6. bxc3 {[%emt 0:00:05]} c5 {[%emt 0:00:08]} 7. Rb1 {[%emt 0:02:21]} Be7 {[%emt 0:01:31]} 8. Nf3 {[%emt 0:00:42]} O-O {[%emt 0:01:06]} 9. Be2 {[%emt 0:02:12]} b6 {[%emt 0:00:33]} 10. O-O {[%emt 0:00:38]} Bb7 {[%emt 0:00:33]} 11. Qd3 {[%emt 0:00:56]} Nd7 {[%emt 0:06:27]} 12. Re1 {[%emt 0:04:46]} Rc8 {[%emt 0:05:35]} 13. Bf4 {[%emt 0:05:34]} cxd4 {[%emt 0:09:03]} 14. cxd4 {[%emt 0:00:20]} Nf6 {[%emt 0:00:48]} 15. Bd1 {[%emt 0:06:16]} b5 {[%emt 0:09:28]} 16. Bc2 {[%emt 0:15:45]} Nh5 {[%emt 0:02:54]} 17. Bd2 {[%emt 0:01:43]} a6 {[%emt 0:05:28]} 18. a4 {[%emt 0:08:19]} f5 {[%emt 0:08:44]} 19. axb5 {[%emt 0:07:09]} fxe4 {[%emt 0:08:50]} 20. Rxe4 {[%emt 0:02:01]} Rxc2 {[%emt 0:19:58]} 21. Qxc2 {[%emt 0:00:20]} Qa8 {[%emt 0:00:29]} 22. Rxe6 {[%emt 0:12:07]} Bxf3 {[%emt 0:00:34]} 23. Rxe7 {[%emt 0:00:33]} Bxg2 {[%emt 0:00:59]} 24. b6 {[%emt 0:01:53]} Qd8 {[%emt 0:14:39]} 25. Qc5 {[%emt 0:03:36]} Bf3 {[%emt 0:02:06]} 26. b7 {[%emt 0:01:20]} Qb8 {[%emt 0:00:33]} 27. Rc7 {[%emt 0:01:45]} Qe8 {[%emt 0:00:39]} 28. Qxf8+ {[%emt 0:00:28]} 1-0

[Event "10th Iberoamericano-ch 2024"]
[Site "Linares"]
[Date "2024.09.26"]
[Round "3.20"]
[White "Garzon Zapatanga, Christopher Leonel"]
[Black "Cesar Maestre, Bernardo"]
[Result "0-1"]
[ECO "B90"]
[WhiteElo "2216"]
[BlackElo "2369"]
[Annotator "RC"]
[PlyCount "100"]
[EventDate "2024.09.25"]
[EventType "swiss"]
[EventCountry "ESP"]
[SourceTitle "playchess.com"]
[Source "ChessBase"]
[SourceQuality "1"]
[TimeControl "5400+30"]

1. e4 {[%emt 0:00:12]} c5 {[%emt 0:00:05]} 2. Nf3 {[%emt 0:00:07]} d6 {[%emt 0:00:05]} 3. d4 {[%emt 0:00:17]} cxd4 {[%emt 0:00:05]} 4. Nxd4 {[%emt 0:00:06]} Nf6 {[%emt 0:00:06]} 5. Nc3 {[%emt 0:00:04]} a6 {[%emt 0:00:04]} 6. Be3 {[%emt 0:00:07]} e5 {[%emt 0:00:07]} 7. Nf3 {[%emt 0:00:04]} Be7 {[%emt 0:00:11]} 8. Bc4 {[%emt 0:00:22]} O-O {[%emt 0:00:22]} 9. O-O {[%emt 0:00:17]} Be6 {[%emt 0:00:41]} 10. Bb3 {[%emt 0:00:21]} Nc6 {[%emt 0:00:07]} 11. Bg5 {[%emt 0:00:22]} Nd7 {[%emt 0:03:34]} 12. Bxe7 {[%emt 0:05:11]} Qxe7 {[%emt 0:00:32]} 13. Nd5 {[%emt 0:00:15]} Qd8 {[%emt 0:00:09]} 14. c3 {[%emt 0:05:00]} Kh8 {[%emt 0:11:20]} 15. Ne3 {[%emt 0:03:01]} Nc5 {[%emt 0:04:24]} 16. Bc2 {[%emt 0:00:27]} a5 {[%emt 0:01:03]} 17. b3 {[%emt 0:07:42]} g6 {[%emt 0:07:54]} 18. Qd2 {[%emt 0:03:03]} f5 {[%emt 0:10:53]} 19. exf5 {[%emt 0:00:33]} gxf5 {[%emt 0:00:10]} 20. Rfd1 {[%emt 0:00:38]} f4 {[%emt 0:01:59]} 21. Nf1 {[%emt 0:03:12]} d5 {[%emt 0:15:57]} 22. b4 {[%emt 0:00:55]} Nd7 {[%emt 0:04:16]} 23. Bb3 {[%emt 0:04:48]} Ne7 {[%emt 0:01:57]} 24. c4 {[%emt 0:13:46]} d4 {[%emt 0:14:37]} 25. Nxd4 {[%emt 0:07:14]} exd4 {[%emt 0:00:09]} 26. Qxd4+ {[%emt 0:00:04]} Rf6 {[%emt 0:03:40]} 27. Qxf6+ {[%emt 0:03:43]} Nxf6 {[%emt 0:00:12]} 28. Rxd8+ {[%emt 0:00:05]} Rxd8 {[%emt 0:00:42]} 29. Re1 {[%emt 0:00:06]} a4 {[%emt 0:05:08]} 30. Bxa4 {[%emt 0:06:39]} Bd7 {[%emt 0:00:41]} 31. Rxe7 {[%emt 0:05:32]} Bxa4 {[%emt 0:00:05]} 32. Rf7 {[%emt 0:00:05]} Ne4 {[%emt 0:00:04]} 33. Rxf4 {[%emt 0:00:15]} Nc3 {[%emt 0:00:11]} 34. Rf7 {[%emt 0:02:28]} Ne2+ {[%emt 0:00:57]} 35. Kh1 {[%emt 0:00:05]} Rd1 {[%emt 0:00:05]} 36. h3 {[%emt 0:00:03]} Rxf1+ {[%emt 0:00:39]} 37. Kh2 {[%emt 0:00:06]} Rc1 {[%emt 0:03:37]} 38. Rxb7 {[%emt 0:00:34]} Rxc4 {[%emt 0:00:10]} 39. a3 {[%emt 0:02:49]} Nc3 {[%emt 0:00:07]} 40. Ra7 {[%emt 0:01:25]} Bc6 {[%emt 0:01:27]} 41. Rc7 {[%emt 0:00:31]} Bb5 {[%emt 0:00:51]} 42. Rb7 {[%emt 0:04:25]} Rc8 {[%emt 0:00:11]} 43. f4 {[%emt 0:00:15]} Bc6 {[%emt 0:01:14]} 44. Ra7 {[%emt 0:00:37]} h5 {[%emt 0:05:42]} 45. Kg3 {[%emt 0:01:05]} Ne2+ {[%emt 0:02:34]} 46. Kh4 {[%emt 0:00:06]} Bxg2 {[%emt 0:00:37]} 47. f5 {[%emt 0:00:12]} Nd4 {[%emt 0:01:20]} 48. Kxh5 {[%emt 0:02:37]} Rg8 {[%emt 0:00:10]} 49. Rf7 {[%emt 0:00:08]} Be4 {[%emt 0:00:27]} 50. Rf6 {[%emt 0:04:02]} Nxf5 {[%emt 0:00:09]} 0-1

[Event "10th Iberoamericano-ch 2024"]
[Site "Linares"]
[Date "2024.09.26"]
[Round "3.21"]
[White "Fier, Alexandr"]
[Black "Mayorga Araya, Sofia"]
[Result "1-0"]
[ECO "B90"]
[WhiteElo "2551"]
[BlackElo "2059"]
[Annotator "RC"]
[PlyCount "55"]
[EventDate "2024.09.25"]
[EventType "swiss"]
[EventCountry "ESP"]
[SourceTitle "playchess.com"]
[Source "ChessBase"]
[SourceQuality "1"]
[TimeControl "5400+30"]

1. e4 {[%emt 0:00:12]} c5 {[%emt 0:00:19]} 2. Nf3 {[%emt 0:00:06]} d6 {[%emt 0:00:04]} 3. d4 {[%emt 0:00:03]} cxd4 {[%emt 0:00:05]} 4. Nxd4 {[%emt 0:00:04]} Nf6 {[%emt 0:00:05]} 5. Nc3 {[%emt 0:00:03]} a6 {[%emt 0:00:04]} 6. Rg1 {[%emt 0:00:03]} e5 {[%emt 0:00:39]} 7. Nb3 {[%emt 0:00:05]} h5 {[%emt 0:01:28]} 8. h3 {[%emt 0:00:05]} Be6 {[%emt 0:00:41]} 9. Be3 {[%emt 0:00:05]} Be7 {[%emt 0:00:19]} 10. Qf3 {[%emt 0:00:05]} Nbd7 {[%emt 0:03:57]} 11. O-O-O {[%emt 0:00:06]} b5 {[%emt 0:00:32]} 12. g4 {[%emt 0:02:27]} b4 {[%emt 0:04:36]} 13. Nd5 {[%emt 0:00:07]} Bxd5 {[%emt 0:01:13]} 14. exd5 {[%emt 0:00:04]} hxg4 {[%emt 0:04:10]} 15. hxg4 {[%emt 0:00:04]} Nb6 {[%emt 0:00:38]} 16. g5 {[%emt 0:01:29]} e4 {[%emt 0:05:01]} 17. Qg2 {[%emt 0:10:33]} Nfxd5 {[%emt 0:00:49]} 18. Qxe4 {[%emt 0:00:03]} Nxe3 {[%emt 0:02:38]} 19. Qxe3 {[%emt 0:00:02]} Kf8 {[%emt 0:05:37]} 20. Nd4 {[%emt 0:02:19]} Rh5 {[%emt 0:03:33]} 21. Ne6+ {[%emt 0:01:06]} fxe6 {[%emt 0:01:45]} 22. Qf3+ {[%emt 0:00:04]} Ke8 {[%emt 0:00:21]} 23. Qxh5+ {[%emt 0:00:02]} Kd7 {[%emt 0:00:22]} 24. Bh3 {[%emt 0:00:02]} Qc7 {[%emt 0:02:28]} 25. Rge1 {[%emt 0:00:08]} Rf8 {[%emt 0:00:19]} 26. Rxe6 {[%emt 0:01:00]} Kd8 {[%emt 0:00:26]} 27. Qg6 {[%emt 0:01:24]} Qc5 {[%emt 0:04:53]} 28. Rxe7 {[%emt 0:00:16]} 1-0